bitfinex/quotes_BTCUSD_20251207
["timestamp","ask_amount","ask_price","bid_price","bid_amount"]
[1765143617473,0.220354,90764.0,90720.0,1.14046207]
[1765143617474,0.02913123,90769.0,90760.0,0.23137916]
[1765143617676,0.02913123,90769.0,90762.0,0.01101782]
[1765143617677,0.01101746,90765.0,90762.0,0.01101782]
[1765143617909,0.01101721,90767.0,90764.0,0.01101758]
[1765143618101,0.03447123,90769.0,90765.0,0.01101746]
[1765143618284,0.01101721,90767.0,90764.0,0.01101758]
[1765143618481,0.01101721,90767.0,90765.0,0.0218575]
[1765143618685,0.04547123,90769.0,90766.0,0.01101734]
[1765143618686,0.02844,90769.0,90766.0,0.01101734]
[1765143619089,0.01744,90769.0,90766.0,0.01101734]
[1765143619293,0.02844,90769.0,90766.0,0.23136189]
[1765143619497,0.038,90767.0,90766.0,0.23136189]
[1765143619710,0.038,90767.0,90766.0,0.09252376]
[1765143619929,0.03945697,90769.0,90766.0,0.09252376]
[1765143619930,0.02845697,90769.0,90766.0,0.09252376]
[1765143620239,0.06544,90769.0,90766.0,0.14539376]
[1765143620391,0.02744,90769.0,90766.0,0.33379053]
[1765143620872,0.02744,90769.0,90766.0,0.33132397]
[1765143621199,0.02744,90769.0,90767.0,0.06896619]
[1765143621406,0.23778083,90769.0,90767.0,0.06896619]
[1765143621586,0.23778083,90769.0,90766.0,0.001]
[1765143621587,0.23034439,90767.0,90766.0,0.001]
[1765143621783,0.26734439,90767.0,90766.0,0.005]
[1765143621972,0.23034439,90767.0,90766.0,0.001]
[1765143622212,0.22034439,90767.0,90765.0,0.0218575]
[1765143622425,0.22034439,90767.0,90760.0,0.02087656]
[1765143622426,0.22035896,90761.0,90760.0,0.0001185]
[1765143622587,0.23944896,90761.0,90760.0,0.0001185]
[1765143622776,0.28978294,90761.0,90760.0,0.0001185]
[1765143623799,0.62778294,90761.0,90760.0,0.0011185]
[1765143624862,0.62978294,90761.0,90760.0,0.0021185]
[1765143625046,0.61478294,90761.0,90760.0,0.0011185]
[1765143625244,0.64978294,90761.0,90760.0,0.0051185]
[1765143625448,0.64778294,90761.0,90760.0,0.0041185]
[1765143625653,0.64778294,90761.0,90760.0,0.0051185]
[1765143625817,0.66078294,90761.0,90760.0,0.0051185]
[1765143627061,0.63857896,90761.0,90760.0,0.0051185]
[1765143627263,0.66078294,90761.0,90760.0,0.0051185]
[1765143632111,0.59135896,90761.0,90760.0,0.0051185]
[1765143632246,0.28579896,90761.0,90760.0,0.0051185]
[1765143632701,0.30488896,90761.0,90760.0,0.0051185]
[1765143634274,0.28579896,90761.0,90760.0,0.0051185]
[1765143636262,0.30488896,90761.0,90760.0,0.0051185]
[1765143636483,0.32709294,90761.0,90760.0,0.0051185]
[1765143638986,0.32709294,90761.0,90760.0,0.0007285]
[1765143640212,0.35522294,90761.0,90760.0,0.0007285]
[1765143645365,0.36537164,90761.0,90760.0,0.0007285]
[1765143646037,0.77776799,90761.0,90760.0,0.0007285]
[1765143646241,0.68837164,90761.0,90760.0,0.0007285]
[1765143646441,0.70310164,90761.0,90760.0,0.0007285]
[1765143648351,0.76562463,90761.0,90760.0,0.0007285]
[1765143650023,0.22045173,90723.0,90717.0,0.01444]
[1765143650163,0.0110228,90721.0,90718.0,0.03108297]
[1765143650364,0.23147914,90721.0,90718.0,0.03108297]
[1765143650560,0.23148387,90720.0,90717.0,0.00173087]
[1765143650762,0.22046341,90718.0,90717.0,0.00173087]
[1765143650997,0.23148387,90720.0,90717.0,0.00173087]
[1765143650998,0.01102292,90720.0,90717.0,0.00173087]
[1765143651202,0.01102292,90720.0,90717.0,0.00273087]
[1765143651423,0.22046098,90719.0,90718.0,0.007]
[1765143651602,0.22046098,90719.0,90718.0,0.02666942]
[1765143652207,0.01102292,90720.0,90718.0,0.02666942]
[1765143652386,0.23148383,90720.0,90718.0,0.02666942]
[1765143652590,0.004,90719.0,90718.0,0.02666942]
[1765143653892,0.22046341,90718.0,90717.0,0.00173087]
[1765143654528,0.22046341,90718.0,90717.0,0.000118]
[1765143655303,0.22746341,90718.0,90717.0,0.000118]
[1765143656119,0.27590341,90718.0,90717.0,0.000118]
[1765143656274,0.29810739,90718.0,90717.0,0.000118]
[1765143656483,0.62110739,90718.0,90717.0,0.000118]
[1765143656909,0.007,90718.0,90717.0,0.000118]
[1765143657114,0.01102292,90720.0,90717.0,0.01114129]
[1765143657426,0.01102487,90720.0,90719.0,0.01736]
[1765143657721,0.01744,90720.0,90719.0,0.01736]
[1765143658502,0.02444,90720.0,90719.0,0.01736]
[1765143658674,0.01744,90720.0,90719.0,0.01736]
[1765143658880,0.24266496,90719.0,90717.0,0.000118]
[1765143659077,0.03126,90718.0,90717.0,0.000118]
[1765143659279,0.40434398,90718.0,90717.0,0.000118]
[1765143660382,0.57657203,90718.0,90717.0,0.000118]
[1765143660628,0.58257203,90718.0,90717.0,0.000118]
[1765143660887,0.58557203,90718.0,90717.0,0.000118]
[1765143661108,0.59157203,90718.0,90717.0,0.000118]
[1765143662209,0.59157203,90718.0,90700.0,0.0023]
[1765143662210,0.62822441,90704.0,90700.0,0.0023]
[1765143662418,0.69259267,90704.0,90700.0,0.0023]
[1765143662835,0.70362167,90704.0,90700.0,0.0023]
[1765143663467,0.71362167,90704.0,90700.0,0.0023]
[1765143663665,0.71962167,90704.0,90700.0,0.0023]
[1765143663888,0.60602772,90701.0,90700.0,0.0023]
[1765143664097,0.6471617,90701.0,90700.0,0.0023]
[1765143664298,0.6750417,90701.0,90700.0,0.0023]
[1765143665075,0.6810417,90701.0,90700.0,0.0023]
[1765143665679,0.6900417,90701.0,90700.0,0.0023]
[1765143665884,0.79974676,90701.0,90700.0,0.0023]
[1765143666087,0.79074676,90701.0,90700.0,0.0023]
[1765143666468,0.80174676,90701.0,90700.0,0.0023]
[1765143668140,0.80174676,90701.0,90666.0,0.5]
[1765143668141,0.22058742,90667.0,90666.0,0.5]
[1765143668342,0.25695742,90667.0,90666.0,0.5]
[1765143668541,0.69256439,90667.0,90666.0,0.5]
[1765143668867,0.66317041,90667.0,90666.0,0.5]
[1765143669254,0.6642399,90667.0,90666.0,0.5]
[1765143669673,0.6642399,90667.0,90666.0,0.50161287]
[1765143669674,0.0411985,90667.0,90666.0,0.50161287]
[1765143669836,0.00706949,90667.0,90666.0,0.62330148]
[1765143670040,0.02150949,90667.0,90666.0,0.62439823]
[1765143670253,0.02850949,90667.0,90666.0,0.59692823]
[1765143670461,0.02850949,90667.0,90666.0,0.57956823]
[1765143671383,0.02450949,90667.0,90666.0,0.57956823]
[1765143671563,0.03643949,90667.0,90666.0,0.50270962]
[1765143671755,0.05864347,90667.0,90666.0,0.50270962]
[1765143672162,0.05964347,90667.0,90666.0,0.50270962]
[1765143672561,0.03643949,90667.0,90666.0,0.50270962]
[1765143672740,0.05864347,90667.0,90666.0,0.50270962]
[1765143672946,0.06264347,90667.0,90666.0,0.50270962]
[1765143673165,0.06964347,90667.0,90666.0,0.50270962]
[1765143673331,0.06264347,90667.0,90666.0,0.50270962]
[1765143673732,0.06964347,90667.0,90666.0,0.50270962]
[1765143674034,0.06964347,90667.0,90666.0,0.55410359]
[1765143674436,0.04743949,90667.0,90666.0,0.50109675]
[1765143674680,0.09824347,90667.0,90666.0,0.50109675]
[1765143675284,0.31883089,90667.0,90666.0,0.50109675]
[1765143677137,0.26802691,90667.0,90666.0,0.50109675]
[1765143677331,0.26802691,90667.0,90666.0,0.55122643]
[1765143677860,0.29023089,90667.0,90666.0,0.55122643]
[1765143678004,0.31883089,90667.0,90666.0,0.55122643]
[1765143678208,0.70435388,90667.0,90666.0,0.50109675]
[1765143678412,0.71442032,90667.0,90666.0,0.50109675]
[1765143678596,0.71442006,90667.0,90666.0,0.50109675]
[1765143679550,0.70742006,90667.0,90666.0,0.47970675]
[1765143679738,0.82312512,90667.0,90666.0,0.47970675]
[1765143680278,0.62832899,90661.0,90660.0,0.0002]
[1765143680418,0.66445517,90661.0,90660.0,0.0002]
[1765143680753,0.69305517,90661.0,90660.0,0.0002]
[1765143680961,0.75700342,90661.0,90660.0,0.0002]
[1765143681315,0.76600342,90661.0,90660.0,0.0002]
[1765143681742,0.75700342,90661.0,90660.0,0.0002]
[1765143681942,0.75700342,90661.0,90613.0,0.01103594]
[1765143681943,0.03323943,90617.0,90613.0,0.01103594]
[1765143682187,0.03968398,90616.0,90614.0,0.04819052]
[1765143682352,0.01748,90616.0,90614.0,0.22232822]
[1765143682552,0.01748,90616.0,90614.0,0.00161287]
[1765143683149,0.01759807,90616.0,90614.0,0.00161287]
[1765143683689,0.220714,90615.0,90614.0,0.00161287]
[1765143685309,0.221714,90615.0,90614.0,0.00161287]
[1765143685683,0.228714,90615.0,90614.0,0.00161287]
[1765143685867,0.246034,90615.0,90614.0,0.00161287]
[1765143686079,0.2570697,90615.0,90612.0,0.00734985]
[1765143686287,0.03952398,90613.0,90612.0,0.00734985]
[1765143686596,0.01732,90613.0,90612.0,0.00734985]
[1765143688140,0.01832,90613.0,90612.0,0.00734985]
[1765143688745,0.02532,90613.0,90612.0,0.00734985]
[1765143689737,0.02432,90613.0,90612.0,0.00734985]
[1765143689928,0.03232,90613.0,90612.0,0.00734985]
[1765143690150,0.07612398,90613.0,90612.0,0.00734985]
[1765143690353,0.08212398,90613.0,90612.0,0.00734985]
[1765143690527,0.05992,90613.0,90612.0,0.00734985]
[1765143691090,0.03132,90613.0,90612.0,0.00734985]
[1765143691271,0.03148,90613.0,90612.0,0.00734985]
[1765143691417,0.014,90613.0,90612.0,0.00734985]
[1765143691788,0.014,90613.0,90612.0,0.03470879]
[1765143692023,0.03148,90613.0,90612.0,0.01712879]
[1765143692897,0.014,90613.0,90612.0,0.01712879]
[1765143693062,0.03148,90613.0,90612.0,0.01712879]
[1765143694659,0.03148,90613.0,90612.0,0.00895179]
[1765143696378,0.25219888,90613.0,90612.0,0.00895179]
[1765143697380,0.03148,90613.0,90612.0,0.00895179]
[1765143697783,0.25219888,90613.0,90612.0,0.00895179]
[1765143698062,0.014,90613.0,90612.0,0.05614466]
[1765143698193,0.014,90613.0,90612.0,0.51026204]
[1765143698405,0.014,90613.0,90612.0,0.53246602]
[1765143698606,0.00011807,90616.0,90615.0,0.220714]
[1765143698865,0.00011807,90616.0,90615.0,0.77805585]
[1765143699153,0.00011807,90616.0,90615.0,0.8593608]
[1765143699508,0.00011807,90616.0,90615.0,0.8549608]
[1765143699908,0.00111807,90616.0,90615.0,0.8549608]
[1765143700307,0.0110318,90647.0,90643.0,0.01103229]
[1765143700552,0.0110318,90647.0,90644.0,0.03640767]
[1765143700553,0.0001185,90647.0,90644.0,0.03640767]
[1765143700768,0.0175985,90647.0,90646.0,0.03089]
[1765143701169,0.0175985,90647.0,90646.0,0.05889]
[1765143701512,0.0175985,90647.0,90646.0,0.06050287]
[1765143701671,0.0081185,90647.0,90646.0,0.31605845]
[1765143701871,0.0151185,90647.0,90646.0,0.09541993]
[1765143702280,0.0071185,90647.0,90646.0,0.09541993]
[1765143702482,0.0081185,90647.0,90646.0,0.09541993]
[1765143703104,0.0001185,90647.0,90646.0,0.09541993]
[1765143703299,0.0151185,90647.0,90646.0,0.06050287]
[1765143703978,0.0151185,90647.0,90646.0,0.03250287]
[1765143704380,0.22065145,90641.0,90637.0,0.01103302]
[1765143704582,0.03323639,90642.0,90638.0,0.0110329]
[1765143704784,0.01103229,90643.0,90638.0,0.0110329]
[1765143704984,0.01103241,90642.0,90639.0,0.07302592]
[1765143705705,0.001,90641.0,90639.0,0.07302592]
[1765143706090,0.2316743,90645.0,90641.0,0.01103253]
[1765143706287,0.02220398,90644.0,90641.0,0.01103253]
[1765143706487,0.01,90642.0,90641.0,0.01103253]
[1765143707626,0.01103216,90644.0,90641.0,0.01103253]
[1765143707793,0.01103216,90644.0,90641.0,0.2316831]
[1765143708005,0.01103216,90644.0,90641.0,0.01103253]
[1765143708616,0.014,90642.0,90641.0,0.01303253]
[1765143708854,0.01203216,90644.0,90641.0,0.01103253]
[1765143709057,0.001,90644.0,90641.0,0.23168294]
[1765143709460,0.02220398,90645.0,90642.0,0.01103241]
[1765143709660,0.014,90644.0,90643.0,0.01103229]
[1765143710413,0.014,90644.0,90643.0,0.23167812]
[1765143710633,0.014,90644.0,90641.0,0.002]
[1765143710634,0.03421,90644.0,90641.0,0.002]
[1765143710836,0.001,90642.0,90640.0,0.01103265]
[1765143711031,0.001,90642.0,90641.0,0.0131]
[1765143711237,0.015,90644.0,90641.0,0.02413253]
[1765143711589,0.01103204,90645.0,90641.0,0.02413253]
[1765143711590,0.01103204,90645.0,90644.0,0.00065241]
[1765143711768,0.2317887,90647.0,90644.0,0.00065241]
[1765143712162,0.0001185,90647.0,90646.0,0.02143]
[1765143712459,0.0175985,90647.0,90646.0,0.02143]
[1765143712802,0.0175985,90647.0,90646.0,0.05043287]
[1765143713104,0.0425985,90647.0,90646.0,0.05043287]
[1765143713295,0.0425985,90647.0,90646.0,0.09160474]
[1765143713533,0.0425985,90647.0,90646.0,0.06421474]
[1765143714054,0.0215985,90647.0,90646.0,0.06421474]
[1765143714476,0.0768085,90647.0,90646.0,0.004]
[1765143714687,0.34272857,90647.0,90646.0,0.004]
[1765143714892,0.34972857,90647.0,90646.0,0.004]
[1765143715640,0.68283639,90647.0,90646.0,0.004]
[1765143715852,0.69386989,90647.0,90646.0,0.004]
[1765143716054,0.80357495,90647.0,90646.0,0.004]
[1765143716578,0.86609794,90647.0,90646.0,0.004]
[1765143717384,0.86609794,90647.0,90621.0,0.24653369]
[1765143717385,0.01103423,90627.0,90621.0,0.24653369]
[1765143717622,0.01103423,90627.0,90622.0,0.01103484]
[1765143717623,0.01748,90626.0,90622.0,0.01103484]
[1765143717825,0.02851436,90626.0,90623.0,0.05200272]
[1765143718201,0.02851436,90626.0,90625.0,0.00121611]
[1765143718940,0.01748,90626.0,90625.0,0.00282898]
[1765143719324,0.02448,90626.0,90625.0,0.00282898]
[1765143720039,0.007,90626.0,90625.0,0.05326898]
[1765143720242,0.007,90626.0,90625.0,0.13700254]
[1765143720590,0.001,90626.0,90625.0,0.13700254]
[1765143720726,0.007,90626.0,90625.0,0.13700254]
[1765143721535,0.007,90626.0,90625.0,0.15920652]
[1765143722359,0.007,90626.0,90625.0,0.93917217]
[1765143723197,0.007,90626.0,90625.0,0.85025617]
[1765143723523,0.01748,90644.0,90641.0,0.23168263]
[1765143723728,0.01748,90644.0,90641.0,0.01103253]
[1765143723871,0.01748,90644.0,90635.0,0.01103326]
[1765143723872,0.25256235,90642.0,90638.0,0.0110329]
[1765143724072,0.0113,90639.0,90636.0,0.01103314]
[1765143724324,0.0110329,90638.0,90633.0,0.0110335]
[1765143724526,0.02088,90637.0,90633.0,0.0110335]
[1765143724668,0.22066149,90637.0,90633.0,0.0110335]
[1765143724890,0.01103302,90637.0,90634.0,0.01103338]
[1765143725089,0.03350398,90639.0,90636.0,0.01103314]
[1765143725324,0.008,90642.0,90637.0,0.22066043]
[1765143725325,0.01103241,90642.0,90637.0,0.22066043]
[1765143725490,0.001,90638.0,90637.0,0.23169345]
[1765143726103,0.001,90638.0,90636.0,0.01103314]
[1765143726299,0.001,90638.0,90635.0,0.01103326]
[1765143726530,0.23169487,90637.0,90633.0,0.0110335]
[1765143726736,0.02088,90634.0,90633.0,0.002]
[1765143727022,0.02088,90634.0,90607.0,0.02413667]
[1765143727023,0.0110357,90615.0,90607.0,0.02413667]
[1765143727241,0.0110357,90615.0,90604.0,0.01103704]
[1765143727242,0.25289888,90613.0,90604.0,0.01103704]
[1765143727459,0.25289888,90613.0,90603.0,0.01103716]
[1765143727669,0.25289888,90613.0,90604.0,0.01103704]
[1765143727879,0.0113,90613.0,90608.0,0.02583655]
[1765143728293,0.0113,90613.0,90612.0,0.00774429]
[1765143729144,0.0463,90613.0,90612.0,0.01174429]
[1765143729364,0.06718,90613.0,90612.0,0.01174429]
[1765143729584,0.06718,90613.0,90585.0,0.05934582]
[1765143729585,0.01103862,90591.0,90585.0,0.03942492]
[1765143729833,0.25036466,90586.0,90578.0,0.0110402]
[1765143730055,0.0087,90586.0,90576.0,0.01104045]
[1765143730480,0.0087,90586.0,90580.0,0.01103996]
[1765143730754,0.03836,90585.0,90584.0,0.00165291]
[1765143730962,0.01748,90585.0,90584.0,0.00165291]
[1765143731395,0.03836,90585.0,90584.0,0.05408192]
[1765143731607,0.03836,90585.0,90584.0,0.00865291]
[1765143731608,0.01748,90585.0,90584.0,0.00865291]
[1765143731821,0.0097,90586.0,90584.0,0.00165291]
[1765143732033,0.0097,90586.0,90585.0,0.02084]
[1765143732034,0.001,90586.0,90585.0,0.02084]
[1765143732238,0.01752,90587.0,90585.0,0.02084]
[1765143733003,0.02855911,90587.0,90584.0,0.00165291]
[1765143733228,0.02024,90585.0,90584.0,4.004e-05]
[1765143733580,0.02424,90585.0,90584.0,0.00304004]
[1765143734010,0.02024,90585.0,90584.0,4.004e-05]
[1765143734192,0.02024,90585.0,90584.0,0.00304004]
[1765143734193,0.2207871,90585.0,90584.0,0.00304004]
[1765143734532,0.01752,90586.0,90584.0,4.004e-05]
[1765143734733,0.026,90585.0,90584.0,0.00165291]
[1765143734961,0.026,90585.0,90584.0,0.02249291]
[1765143735165,0.017915,90591.0,90584.0,0.02249291]
[1765143735166,0.000395,90591.0,90588.0,0.01103898]
[1765143735367,0.000395,90591.0,90590.0,0.22077491]
[1765143735567,0.000395,90591.0,90590.0,0.06885137]
[1765143735774,0.000395,90591.0,90590.0,0.0711065]
[1765143736373,0.000395,90591.0,90590.0,0.00225513]
[1765143736920,0.004395,90591.0,90590.0,0.00225513]
[1765143737547,0.020635,90591.0,90590.0,0.00225513]
[1765143737773,0.042635,90591.0,90590.0,0.00225513]
[1765143738002,0.09242898,90591.0,90590.0,0.00225513]
[1765143739111,0.47795197,90591.0,90590.0,0.00225513]
[1765143739317,0.47795197,90591.0,90590.0,0.00035123]
[1765143739547,0.45595197,90591.0,90590.0,0.00035123]
[1765143739890,0.47995197,90591.0,90590.0,0.00035123]
[1765143740100,0.49095197,90591.0,90590.0,0.00035123]
[1765143743059,0.49095197,90591.0,90584.0,4.004e-05]
[1765143743060,0.08472697,90585.0,90584.0,4.004e-05]
[1765143743270,0.11957277,90585.0,90584.0,4.004e-05]
[1765143743498,0.47016277,90585.0,90584.0,4.004e-05]
[1765143743741,2.28465997,90585.0,90584.0,4.004e-05]
[1765143743983,2.07501897,90585.0,90584.0,4.004e-05]
[1765143744202,2.08506125,90585.0,90584.0,4.004e-05]
[1765143744400,2.08506125,90585.0,90541.0,0.01104472]
[1765143744401,0.6285482,90571.0,90541.0,0.01104472]
[1765143744519,0.6663082,90571.0,90542.0,0.01104459]
[1765143744722,0.6938982,90571.0,90541.0,0.01104472]
[1765143745034,0.6938982,90571.0,90545.0,0.01104423]
[1765143745256,0.6938982,90571.0,90541.0,0.23193799]
[1765143745473,0.6938982,90571.0,90545.0,0.01104423]
[1765143745943,0.63137521,90571.0,90553.0,0.01534]
[1765143746141,0.63137521,90571.0,90554.0,0.01104313]
[1765143746318,0.63137521,90571.0,90556.0,0.01104289]
[1765143746484,0.64437521,90571.0,90555.0,0.01104301]
[1765143746845,0.65537521,90571.0,90559.0,0.01104252]
[1765143747083,0.65537521,90571.0,90556.0,0.01104289]
[1765143748028,0.65537521,90571.0,90546.0,0.01104411]
[1765143748252,0.65537521,90571.0,90543.0,0.01104447]
[1765143748480,0.65537521,90571.0,90541.0,0.01104472]
[1765143748481,0.65537521,90571.0,90542.0,0.01104459]
[1765143748698,0.65537521,90571.0,90543.0,0.01104447]
[1765143748924,0.65537521,90571.0,90542.0,0.22089114]
[1765143748925,0.6763782,90571.0,90542.0,0.22089114]
[1765143749162,0.7058982,90571.0,90545.0,0.01104423]
[1765143749659,0.7098982,90571.0,90547.0,0.01104398]
[1765143749868,0.63137521,90571.0,90548.0,0.01104386]
[1765143750085,0.63137521,90571.0,90570.0,0.00055632]
[1765143750295,0.7352643,90571.0,90570.0,0.00055632]
[1765143750519,0.7332643,90571.0,90570.0,0.00055632]
[1765143750973,0.7462643,90571.0,90570.0,0.00055632]
[1765143751828,0.7342643,90571.0,90570.0,0.00055632]
[1765143752031,0.7322643,90571.0,90570.0,0.00055632]
[1765143752458,0.7462643,90571.0,90570.0,0.00055632]
[1765143752680,0.7352643,90571.0,90570.0,0.00055632]
[1765143752893,0.7462643,90571.0,90570.0,0.00055632]
[1765143753574,0.65637521,90571.0,90570.0,0.00055632]
[1765143756163,0.72896809,90571.0,90570.0,0.00055632]
[1765143756364,0.75217297,90571.0,90570.0,0.00055632]
[1765143757868,0.74117297,90571.0,90570.0,0.00055632]
[1765143758078,0.77019117,90571.0,90570.0,0.00055632]
[1765143758291,0.73917297,90571.0,90570.0,0.00055632]
[1765143758496,0.86482993,90571.0,90570.0,0.00055632]
[1765143758708,0.74517297,90571.0,90570.0,0.00055632]
[1765143758915,0.75620654,90571.0,90570.0,0.00055632]
[1765143759126,0.78120618,90571.0,90570.0,0.00055632]
[1765143761445,0.75217297,90571.0,90570.0,0.00055632]
[1765143763457,0.73465297,90571.0,90570.0,0.00055632]
[1765143763595,0.85627611,90571.0,90570.0,0.00055632]
[1765143763791,0.67212998,90571.0,90570.0,0.00055632]
[1765143764001,0.68964998,90571.0,90570.0,0.00055632]
[1765143766386,0.77351577,90571.0,90570.0,0.00055632]
[1765143766671,0.79103577,90571.0,90570.0,0.00055632]
[1765143767229,0.75217297,90571.0,90570.0,0.00055632]
[1765143767456,0.74117297,90571.0,90570.0,0.00055632]
[1765143767824,0.73917297,90571.0,90570.0,0.00055632]
[1765143768033,0.84567121,90571.0,90570.0,0.00055632]
[1765143768227,0.85167121,90571.0,90570.0,0.00055632]
[1765143768470,0.83367121,90571.0,90570.0,0.00055632]
[1765143768682,0.2209066,90536.0,90532.0,0.01104581]
[1765143768849,0.01752,90536.0,90535.0,0.00170287]
[1765143769055,0.05914398,90536.0,90535.0,0.00170287]
[1765143769483,0.01752,90536.0,90535.0,0.00170287]
[1765143769817,0.01752,90536.0,90535.0,0.04994287]
[1765143770093,0.02391451,90536.0,90533.0,0.01104569]
[1765143770320,0.03495984,90536.0,90533.0,0.01104569]
[1765143770460,0.02391451,90536.0,90533.0,0.01104569]
[1765143770666,0.02391451,90536.0,90533.0,0.23195818]
[1765143770862,0.03495984,90536.0,90533.0,0.01104569]
[1765143771089,0.01891451,90536.0,90533.0,0.23195739]
[1765143771285,0.03595984,90536.0,90529.0,0.02577618]
[1765143771484,0.03495984,90536.0,90529.0,0.02577618]
[1765143771687,0.01104557,90534.0,90531.0,0.01104594]
[1765143772337,0.01104557,90534.0,90530.0,0.01104606]
[1765143772663,0.01104557,90534.0,90531.0,0.01104594]
[1765143773269,0.01104569,90533.0,90530.0,0.01104606]
[1765143773682,0.01104569,90533.0,90518.0,0.01104752]
[1765143773683,0.01104618,90529.0,90518.0,0.01104752]
[1765143773883,0.01104642,90527.0,90524.0,0.01104679]
[1765143774080,0.24034239,90530.0,90524.0,0.01104679]
[1765143774081,0.01104618,90529.0,90526.0,0.01104655]
[1765143774409,0.01104618,90529.0,90525.0,0.01104667]
[1765143774653,0.01104606,90530.0,90527.0,0.01104642]
[1765143774995,0.001,90533.0,90530.0,0.01104606]
[1765143775409,0.01104545,90535.0,90530.0,0.01104606]
[1765143775410,0.01104545,90535.0,90531.0,0.01104594]
[1765143775740,0.01104545,90535.0,90529.0,0.01448]
[1765143775741,0.007,90530.0,90529.0,0.01448]
[1765143776147,0.01104581,90532.0,90529.0,0.03318]
[1765143776148,0.23196451,90532.0,90529.0,0.03318]
[1765143776585,0.23196451,90532.0,90529.0,0.04055669]
[1765143776908,0.001,90530.0,90529.0,0.04055669]
[1765143777202,0.23196451,90532.0,90529.0,0.04055669]
[1765143777586,0.23296451,90532.0,90529.0,0.04055669]
[1765143777992,0.22094424,90521.0,90519.0,0.00096774]
[1765143778195,0.01104703,90522.0,90516.0,0.23568354]
[1765143778397,0.00604703,90522.0,90521.0,0.01868]
[1765143778777,0.00604703,90522.0,90521.0,0.04876]
[1765143779001,0.01104679,90524.0,90521.0,0.04876]
[1765143779179,0.01104679,90524.0,90523.0,0.01868]
[1765143779534,0.01104667,90525.0,90523.0,0.01868]
[1765143779683,0.01104667,90525.0,90524.0,0.04876]
[1765143780107,0.01104618,90529.0,90525.0,0.01104667]
[1765143780445,0.00039451,90536.0,90534.0,0.22091148]
[1765143780747,0.00039451,90536.0,90535.0,0.08408389]
[1765143780904,0.00039451,90536.0,90535.0,0.11416389]
[1765143781613,0.00039451,90536.0,90535.0,0.11515214]
[1765143781816,0.00539451,90536.0,90535.0,0.11515214]
[1765143782017,0.00539451,90536.0,90535.0,0.11625795]
[1765143782202,0.00039451,90536.0,90535.0,0.11625795]
[1765143783098,0.00139451,90536.0,90535.0,0.11725795]
[1765143783500,0.00439451,90536.0,90535.0,0.12225795]
[1765143783933,0.00539451,90536.0,90535.0,0.12325795]
[1765143785931,0.00539451,90536.0,90535.0,0.12429768]
[1765143787144,0.00539451,90536.0,90535.0,0.72164766]
[1765143787350,0.00539451,90536.0,90535.0,0.7195536]
[1765143787551,0.0110413,90569.0,90535.0,0.7195536]
[1765143787753,0.01104106,90571.0,90568.0,0.03349]
[1765143787953,0.01104106,90571.0,90568.0,0.06357]
[1765143788152,0.23186291,90571.0,90568.0,0.03349]
[1765143788873,0.23186291,90571.0,90568.0,0.03360807]
[1765143789268,0.01104106,90571.0,90568.0,0.01492807]
[1765143789490,0.22082367,90570.0,90568.0,0.00011807]
[1765143790076,0.22082367,90570.0,90568.0,0.00311807]
[1765143790492,0.22082367,90570.0,90569.0,0.01868]
[1765143790857,0.22182367,90570.0,90568.0,0.00111807]
[1765143791092,0.001,90570.0,90569.0,0.02809386]
[1765143791259,0.015,90570.0,90569.0,0.02809386]
[1765143791457,0.001,90570.0,90569.0,0.02809386]
[1765143791665,0.015,90570.0,90569.0,0.03009386]
[1765143792067,0.014,90570.0,90569.0,0.07651386]
[1765143793010,0.015,90570.0,90569.0,0.07751386]
[1765143794881,0.015,90570.0,90569.0,0.09971784]
[1765143795734,0.014,90570.0,90569.0,0.50696684]
[1765143796314,0.01456,90607.0,90605.0,0.22073669]
[1765143796496,0.03451123,90606.0,90605.0,0.22073836]
[1765143796712,0.00161287,90607.0,90605.0,0.22073836]
[1765143796902,0.23174801,90616.0,90605.0,0.22073836]
[1765143796903,0.01748,90616.0,90613.0,0.01103594]
[1765143797045,0.02851557,90616.0,90613.0,0.01103594]
[1765143797254,0.2353198,90615.0,90614.0,0.02785208]
[1765143797486,0.01103594,90613.0,90610.0,0.01365]
[1765143797803,0.01909287,90616.0,90614.0,0.23987613]
[1765143798016,0.05709287,90616.0,90615.0,0.01916]
[1765143798207,0.03961287,90616.0,90615.0,0.01916]
[1765143798349,0.03961287,90616.0,90615.0,0.09730185]
[1765143798981,0.038,90616.0,90615.0,0.12456185]
[1765143799190,0.01103411,90628.0,90625.0,0.01103448]
[1765143799385,0.01103411,90628.0,90627.0,0.03281]
[1765143799835,0.01748,90629.0,90627.0,0.04102393]
[1765143800012,0.0004,90630.0,90628.0,0.23984234]
[1765143800192,0.0004,90630.0,90629.0,0.01916]
[1765143800406,0.23174208,90618.0,90609.0,0.01103643]
[1765143800646,0.23174208,90618.0,90590.0,0.24342973]
[1765143800647,0.0110363,90610.0,90607.0,0.01103667]
[1765143800941,0.0110363,90610.0,90607.0,0.00011807]
[1765143800942,0.23176567,90609.0,90607.0,0.00011807]
[1765143801120,0.01103643,90609.0,90607.0,0.00011807]
[1765143801546,0.23176721,90609.0,90607.0,0.00011807]
[1765143801747,0.23176721,90609.0,90607.0,0.02511822]
[1765143802149,0.01203643,90609.0,90607.0,0.02811822]
[1765143802450,0.23176545,90609.0,90607.0,0.02511822]
[1765143802649,0.04696,90608.0,90607.0,0.00011807]
[1765143802851,0.08538265,90608.0,90607.0,0.00111807]
[1765143804033,0.09938265,90608.0,90607.0,0.00111807]
[1765143804215,0.07717867,90608.0,90607.0,0.00111807]
[1765143804426,0.10438265,90608.0,90607.0,0.00211807]
[1765143804823,0.04028287,90608.0,90607.0,0.00211807]
[1765143805026,0.04028287,90608.0,90607.0,0.02550824]
[1765143805223,0.05488867,90608.0,90607.0,0.00211807]
[1765143805424,0.10438265,90608.0,90607.0,0.00211807]
[1765143808664,0.48990564,90608.0,90607.0,0.00211807]
[1765143808854,0.47529984,90608.0,90607.0,0.00211807]
[1765143809832,0.46129984,90608.0,90607.0,0.00111807]
[1765143810153,0.48929984,90608.0,90607.0,0.00311807]
[1765143810557,0.50029984,90608.0,90607.0,0.00311807]
[1765143812388,0.59923613,90608.0,90607.0,0.00311807]
[1765143813462,0.01104093,90572.0,90568.0,0.01104142]
[1765143813684,0.01748,90571.0,90568.0,0.01104142]
[1765143815299,0.01948,90571.0,90568.0,0.02004142]
[1765143815502,0.01948,90571.0,90569.0,0.05197627]
[1765143815917,0.01848,90571.0,90569.0,0.05197627]
[1765143816111,0.23930322,90571.0,90569.0,0.05197627]
[1765143816315,0.23930322,90571.0,90556.0,0.04091]
[1765143816316,0.23187765,90565.0,90560.0,0.0110424]
[1765143816528,0.22084074,90563.0,90559.0,0.01104252]
[1765143816752,0.22084074,90563.0,90558.0,0.01104264]